Cogmind - Beta 16 @@@ ROGUE MODE // 2025.11.02 @ 14:02:56 // Winter2019/RPGLIKE Player: Jack Result: Destroyed by S-10 Pest with Light Assault Rifle Performance ------------- Evolutions (2) 1000 Regions Visited (3) 600 Robots Destroyed (24) 120 Value Destroyed (757) 757 Prototype IDs (0) 0 Alien Tech Used (0) 0 Bonus (0) 0 TOTAL SCORE: 2477 Bonus ------- None Cogmind --------- Core Integrity 0/600 Matter 167/300 Energy 123/125 System Corruption 0% Temperature Cool (4) Movement Flying (34) Location -8/Materials Parts ------- > --- POWER (1) -------- Light Ion Engine > --- PROPULSION (2) --- Flight Unit VTOL Module > --- UTILITY (1) ------ (None) > --- WEAPON (4) ------- Assault Rifle Light Assault Rifle Light Assault Rifle Heavy Assault Rifle > --- INVENTORY (2) ---- Protomatter-39 Protomatter-36 Peak State ------------ > --- POWER ------------ Light Ion Engine > --- PROPULSION ------- Flight Unit VTOL Module > --- UTILITY ---------- Light Armor Plating > --- WEAPON ----------- Assault Rifle Light Assault Rifle Light Assault Rifle Heavy Assault Rifle > --- INVENTORY -------- Protomatter [Rating: 10] Favorites ----------- Power Light Ion Engine Engine Light Ion Engine Propulsion Flight Unit Flight Unit Flight Unit Utility Light Armor Plating Protection Light Armor Plating Weapon Light Assault Rifle Ballistic Gun Light Assault Rifle Build | -11 -10 -9 -8 ------- Run | Yrd Mat Mat Mat Slots Evolved 4 | 4 . . . Power . | . . . . Propulsion 1 | 1 . . . Utility . | . . . . Weapon 3 | 3 . . . Parts Attached 10 | 3 3 3 1 Power 1 | . 1 . . Engine 1 | . 1 . . Core . | . . . . Reactor . | . . . . Propulsion 3 | . 2 . 1 Treads . | . . . . Leg . | . . . . Wheel . | . . . . Hover . | . . . . Flight 3 | . 2 . 1 Utility 1 | . . 1 . Device . | . . . . Storage . | . . . . Processor . | . . . . Hackware . | . . . . Protection 1 | . . 1 . Artifact . | . . . . Weapon 5 | 3 . 2 . Energy Gun . | . . . . Energy Cannon . | . . . . Ballistic Gun 5 | 3 . 2 . Ballistic Cannon . | . . . . Launcher . | . . . . Special Weapon . | . . . . Impact Weapon . | . . . . Slashing Weapon . | . . . . Piercing Weapon . | . . . . Special Melee Weapon . | . . . . Unidentified Prototypes . | . . . . Parts Lost 1 | . . . 1 Power . | . . . . Propulsion . | . . . . Utility 1 | . . . 1 Weapon . | . . . . Highest Loss Streak 1 | . . . 1 To Critical Strikes . | . . . . Average Backups . | . . . . Power . | . . . . Propulsion . | . . . . Utility . | . . . . Weapon . | . . . . Tool/Special . | . . . . Unused Backups . | . . . . Power . | . . . . Propulsion . | . . . . Utility . | . . . . Weapon . | . . . . Tool/Special . | . . . . Average Slot Usage (%) 82 | . 56 85 96 Engine 10 | . 6 12 12 Flight 22 | . 12 25 25 Protection 3 | . . 1 9 Ballistic Gun 45 | . 37 46 50 Peak Build Rating 10 | 3 6 9 10 Average Rating 7 | 2 4 7 9 On Entrance 4 | . 3 6 9 Avg Prop Armor Cover (%) . | . . . . Naked Turns . | . . . . Heaviest Build 13 | 4 7 13 13 Greatest Support 13 | 8 13 13 13 Greatest Overweight (x) . | . . . . Average Overweight (x) . | . . . . Largest Inventory Capacity 2 | . . 1 2 Average Capacity . | . . . 1 Most Carried 2 | . . 1 2 Average Carried . | . . . 1 Final Capacity 2 | . . 1 2 Final Carried 2 | . . 1 2 Class Distribution -------------------- 56% | Gunner 28% | Hacker-Gunner 15% | Scavenger-Gunner Dominant Class ---------------- Gunner | -10/Materials Gunner | -9/Materials Hacker-Gunner | -8/Materials Resources | -11 -10 -9 -8 ----------- Run | Yrd Mat Mat Mat Matter Collected 638 | 195 46 365 32 Remotely . | . . . . Salvage Created 818 | . 23 743 52 Parts 54 | . 5 33 16 Haulers Intercepted . | . . . . Recyclers Shooed . | . . . . Parts Field Recycled . | . . . . Retrieved Matter . | . . . . Parts Self-Destructed . | . . . . Prevented . | . . . . Parts Restored . | . . . . Kills | -11 -10 -9 -8 ------- Run | Yrd Mat Mat Mat Combat Hostiles Destroyed 24 | . 3 15 6 Guns 24 | . 3 15 6 Classes Destroyed 5 | . 1 4 . Swarmer 6 | . 3 . 3 Grunt 12 | . . 10 2 Brawler 1 | . . 1 . Duelist 1 | . . 1 . Sentry 4 | . . 3 1 Best Kill Streak 10 | . 3 10 3 Combat Bots Only 10 | . 3 10 3 Max Kills in Single Turn 2 | . 1 1 2 Gunslinging 1 | . . . 1 Exploded . | . . . . Melee . | . . . . Uniques/NPCs Destroyed . | . . . . Combat | -11 -10 -9 -8 -------- Run | Yrd Mat Mat Mat Hostile Shots Fired 145 | . 7 40 98 Missed 63 | . 3 20 40 Hits 82 | . 4 20 58 Projectile 82 | . 4 20 58 Critical Strikes 4 | . . . 4 Damage Taken 1070 | . 32 233 805 Core 811 | . 30 183 598 Absorbed by Shields . | . . . . Redirected to Core 681 | . 7 171 503 Core Remaining (%) 99 | 100 99 98 . Volleys Fired 61 | 1 8 32 20 Largest 4 | 3 3 4 4 Hottest 83 | 60 60 83 83 Shots Fired 229 | 3 24 122 80 Gun 229 | 3 24 122 80 Cannon . | . . . . Launcher . | . . . . Special . | . . . . Kinetic 229 | 3 24 122 80 Thermal . | . . . . Explosive . | . . . . Electromagnetic . | . . . . Robot Hit Streak 11 | . 2 11 9 Robot Miss Streak 6 | . 3 5 6 Penetration Max . | . . . . Secondary Targets 6 | . 1 1 4 Max Gunslinging Chain 1 | . 1 1 1 Shots Hit Robots 135 | . 8 72 55 Core Hits 51 | 1 3 30 17 Critical Kills . | . . . . Critical Parts Destroyed 1 | . . 1 . Critical Strikes 1 | . . 1 . Destroy 1 | . . 1 . Melee Attacks . | . . . . Impact . | . . . . Slashing . | . . . . Piercing . | . . . . Sneak Attacks . | . . . . Combat Hostiles . | . . . . Follow-up Attacks . | . . . . Damage Inflicted 1478 | 7 77 787 607 Guns 1478 | 7 77 787 607 Cannons . | . . . . Explosions . | . . . . Melee . | . . . . Ramming . | . . . . Kinetic 1478 | 7 77 787 607 Thermal . | . . . . Explosive . | . . . . Electromagnetic . | . . . . Impact . | . . . . Slashing . | . . . . Piercing . | . . . . Highest Corruption 1 | . 1 . . Average Corruption 1 | . 1 . . Corruption Purged . | . . . . Corruption Blocked . | . . . . Overload Shots . | . . . . Overflow Damage . | . . . . Projectiles . | . . . . Explosions . | . . . . Melee . | . . . . Knockbacks . | . . . . Impact . | . . . . Kinetic . | . . . . Secondary . | . . . . Self-Inflicted Damage . | . . . . Shots . | . . . . Rammed . | . . . . Targets Rammed . | . . . . Kicked . | . . . . Crushed . | . . . . Highest Temperature 220 | 10 32 220 72 Average Temperature 75 | 7 13 101 29 Received Heat Transfer 507 | . . 129 378 Siege Activations . | . . . . Martial Activations . | . . . . Shielding Activations . | . . . . Robots Disrupted . | . . . . Combat Hostiles . | . . . . Robots Corrupted . | . . . . Combat Hostiles . | . . . . Parts Fried . | . . . . Impact Corruptions . | . . . . Robots Melted . | . . . . Combat Hostiles . | . . . . Parts Melted . | . . . . Heat Transferred . | . . . . Parts Sabotaged . | . . . . Parts Stolen . | . . . . Parts Stripped . | . . . . Power Chain Reactions . | . . . . Alert | -11 -10 -9 -8 ------- Run | Yrd Mat Mat Mat Maximum Alert Level 1 | . . 1 1 Low Security (%) 71 | 100 100 69 52 Level 1 28 | . . 30 47 Level 2 . | . . . . Level 3 . | . . . . Level 4 . | . . . . Level 5 . | . . . . High Security . | . . . . Max Security . | . . . . Peak Influence 317 | . 70 298 317 Initial 121 | . . 16 121 Average 128 | . 39 134 195 Influence Increases 728 | . 70 382 276 Destroy 0b10 Robot/C 480 | . 60 300 120 Destroy Leader 110 | . 10 60 40 Successful Hack 18 | . . 7 11 Partial Spotted 15 | . . 15 . Lose Combat Pursuer 105 | . . . 105 Influence Decreases 411 | . 30 134 247 Entered New Map 191 | . . 24 167 Time Decay 210 | . 30 110 70 Lost Part 10 | . . . 10 Squads Dispatched 6 | . 1 1 4 Investigation 2 | . . . 2 Extermination . | . . . . Reinforcement 4 | . 1 1 2 Assault . | . . . . Garrison . | . . . . Intercept . | . . . . Searches Triggered . | . . . . Construction Impeded . | . . . . Haulers Reinforced . | . . . . Active Scanning Responses . | . . . . Cargo Convoy Interrupts . | . . . . Stealth | -11 -10 -9 -8 --------- Run | Yrd Mat Mat Mat Distress Signals 3 | . . 2 1 Communications Jammed . | . . . . Distress Signals . | . . . . Times Spotted 55 | . 5 18 32 Peak Tracking Total 15 | . 3 7 15 Tactical Retreats 2 | . . . 2 Traps | -11 -10 -9 -8 ------- Run | Yrd Mat Mat Mat Traps Triggered 1 | . 1 . . Indirectly . | . . . . Trap Hack Attempts . | . . . . Triggered . | . . . . Disarmed . | . . . . Reprogrammed . | . . . . Reused . | . . . . Traps Extracted . | . . . . Installed . | . . . . Triggered . | . . . . Machines | -11 -10 -9 -8 ---------- Run | Yrd Mat Mat Mat Machines Disabled . | . . . . Max in Single Turn . | . . . . Machines Repaired . | . . . . Machines Dismantled . | . . . . Machines Sabotaged . | . . . . Overloaded Fab Kills . | . . . . Hacking | -11 -10 -9 -8 --------- Run | Yrd Mat Mat Mat Machines Accessed 4 | . . 1 3 Terminals 4 | . . 1 3 Fabricators . | . . . . Repair Stations . | . . . . Recycling Units . | . . . . Scanalyzers . | . . . . Garrison Access . | . . . . Total Hacks 10 | . . 1 9 Successful 3 | . . 1 2 Failed 7 | . . . 7 Catastrophic . | . . . . Database Lockouts . | . . . . Manual 10 | . . 1 9 Terminals 10 | . . 1 9 Fabricators . | . . . . Repair Stations . | . . . . Recycling Units . | . . . . Scanalyzers . | . . . . Garrison Access . | . . . . Terminal Hacks 3 | . . 1 2 Part Schematic 1 | . . . 1 Branch Access Points 2 | . . 1 1 Fabricator Hacks . | . . . . Repair Station Hacks . | . . . . Recycling Unit Hacks . | . . . . Scanalyzer . | . . . . Garrison Access Hacks . | . . . . Unauthorized Hacks . | . . . . Terminals . | . . . . Fabricators . | . . . . Repair Stations . | . . . . Recycling Units . | . . . . Scanalyzers . | . . . . Garrison Access . | . . . . Data Cores Recovered . | . . . . Used . | . . . . Hacking Detections 2 | . . . 2 Full Trace Events 2 | . . . 2 Feedback Events . | . . . . Feedback Blocked . | . . . . Robot Schematics Acquired . | . . . . Robots Built . | . . . . Authchips . | . . . . Time . | . . . . Total Robot Build Rating . | . . . . Part Schematics Acquired 1 | . . . 1 Parts Built . | . . . . Authchips . | . . . . Time . | . . . . Total Part Build Rating . | . . . . Part Studies Acquired . | . . . . Parts Repaired . | . . . . Time . | . . . . Parts Recycled . | . . . . Recycled Matter . | . . . . Retrieved Matter . | . . . . Retrieved Components . | . . . . Parts Scanalyzed . | . . . . Part Schematics Acquired . | . . . . Parts Damaged . | . . . . Bothacking | -11 -10 -9 -8 ------------ Run | Yrd Mat Mat Mat Used RIF Installer . | . . . . Robots Hacked . | . . . . Non-combat . | . . . . Combat . | . . . . Robot Hacks Applied . | . . . . Relay Couplers Released . | . . . . Fabnet Peak Effective % . | . . . . Robots Rewired . | . . . . Allies Hacked . | . . . . Hacks Repelled . | . . . . Allies | -11 -10 -9 -8 -------- Run | Yrd Mat Mat Mat Total Allies . | . . . . Largest Group . | . . . . Highest-Rated Group . | . . . . Highest-Rated Ally . | . . . . Total Orders . | . . . . Ally Attacks . | . . . . Total Damage . | . . . . Kills . | . . . . Allies Corrupted . | . . . . Allies Melted . | . . . . Intel | -11 -10 -9 -8 ------- Run | Yrd Mat Mat Mat Active Infowar (turns) . | . . . . Robot Analysis Total . | . . . . Derelict Logs Recovered . | . . . . Drone Launches . | . . . . Drone Recoveries . | . . . . Exploration | -11 -10 -9 -8 ------------- Run | Yrd Mat Mat Mat Turns Passed 492 | 24 94 223 151 Spaces Moved 647 | 33 156 215 243 Core 71 | 33 38 . . Treads . | . . . . Legs . | . . . . Wheels . | . . . . Hover . | . . . . Flight 576 | . 118 215 243 Fastest Speed 34 | 50 37 37 34 Average Speed 37 | 50 40 37 35 Slowest Speed 50 | 50 50 37 37 Overloaded Moves . | . . . . Propulsion Burnouts . | . . . . Robots Hopped 11 | . 2 . 9 Potential Cave-ins . | . . . . Cave-ins Triggered . | . . . . Exploration Rate (%) 24 | 3 36 24 35 Regions Visited 3 Branch Regions . Pre-discovered Areas . | . . . . Known Exits Taken . | . . . . Unknown Exits Taken 3 | 1 1 1 . Scrap Searched . | . . . . Spaces Dug . | . . . . Terrain Destroyed . | . . . . Melee . | . . . . Projectile . | . . . . AOE . | . . . . Terrain Rammed . | . . . . Walls Destroyed . | . . . . Machines Disabled . | . . . . Actions | -11 -10 -9 -8 --------- Run | Yrd Mat Mat Mat Total 752 | 36 168 291 257 Wait 28 | . 3 25 . Move 622 | 32 151 214 225 Hop 11 | . 2 . 9 Pick Up 2 | . . 1 1 Fast Attach 9 | 3 3 3 . Attach . | . . . . Detach . | . . . . Swap 2 | . . 1 1 Drop 3 | . . 2 1 Fire 61 | 1 8 32 20 Melee . | . . . . Ram . | . . . . Kick . | . . . . Crush . | . . . . Escape Stasis . | . . . . Rewire . | . . . . Trap . | . . . . Miscellaneous 14 | . 1 13 . Route ------- -11/Scrapyard -10/Materials (discovered 2 exits: *Mat / [*Min]) -9/Materials (discovered 4 exits: *Mat x2 / Min x2) -8/Materials (discovered 1 exit: [*Fac]) History --------- Turn | Location | Event 5 | -11/Scrapyard | Discovered new exit (range 15) 5 | -11/Scrapyard | Upgraded with Propulsion slot (x1) 5 | -11/Scrapyard | Upgraded with Weapon slot (x3) 25 | -11/Scrapyard | Entered Materials 83 | -10/Materials | Discovered new exit (range 11) 115 | -10/Materials | Discovered new exit (range 8) 119 | -10/Materials | Entered another Materials area 121 | -9/Materials | Reached level 2 155 | -9/Materials | Discovered new exit (range 7) 184 | -9/Materials | Identified exit to Mines 274 | -9/Materials | Reached level 3 325 | -9/Materials | Destroyed 10 combat bots 327 | -9/Materials | Discovered new exit (range 8) 342 | -9/Materials | Entered another Materials area 344 | -8/Materials | Reached level 4 441 | -8/Materials | Core integrity fell below 50% 457 | -8/Materials | Reached level 5 473 | -8/Materials | Core integrity fell below 20% 487 | -8/Materials | Discovered new exit (range 16) 493 | -8/Materials | Destroyed by S-10 Pest with Light Assault Rifle Last Messages --------------- Upgraded: Inventory Capacity (+1) Acquired Protomatter-39. K-01 Serf collects debris. Reached level 5. Y-45 Defender destroyed. Switching to secondary target: G-47 Trooper. K-01 Serf collects debris. Lgt. Armor Plating destroyed. Upgraded: Hack Attack % (+5) Upgraded: Hack Defense % (+10) C-30 ARC bursts open, deploying its payload. S-10 Pest unfolds itself. Slug penetrates G-47 Trooper. G-47 Trooper destroyed. K-01 Serf collects debris. T-07 Excavator destroyed. K-01 Serf collects debris. ALERT: Suspicious intruders detected, dispatching Cutter reinforcements to area. EXIT=FOUND Knocked back. Map ----- +----------------------------------------------------+ | ?????????????????????????????????????????????????? | | ?????????????????????????????????????????????????? | | ?????????????????????????????????????????????????? | | ?????????????????????????????????????????????????? | | ?????????????????????????????????????????????????? | | ?????????????????????????????????????????????????? | | ?????????????????????????????????????????????????? | | ???????????????????#######???????????????????????? | | ?#+######+########## #???????????????????????? | | ^ #???????????????????????? | | < #???????????????????????? | | #???????????????????????? | | ???????#########+###c #???????????????????????? | | ?????????????? ##Y ##???????????????????????? | | ????????????# %## #????????????????????????? | | ????????????# ## #????????????????????????? | | ????????????# !## #????????????????????????? | | ????????????#== ## #????????????????????????? | | ????????????#=* ## #????????????????????????? | | ????????????######### #####????????????????????? | | ????????????????????# !!#????????????????????? | | ????????????????????# !!#????????????????????? | | ????????????????????# c]#????????????????????? | | ????????????????????# sa c]#????????????????????? | | ????????????????????#! s ]]#????????????????????? | | ????????????????????#%= @]]#????????????????????? | | ????????????????????#* #####????????????????????? | | ????????????????????# #????????????????????????? | | ????????????????????# #????????????????????????? | | ????????????????????# ###??????????????????????? | | ????????????????????# #T############???????????? | | ????????????????????# #??????????? | | ????????????????????# #??????????? | | ????????????????????# #??????????? | | ????????????????????## ############ #??????????? | | ?????????????????????# #?????????????????????????? | | ?????????????????????# #?????????????????????????? | | ?????????????????????# #?????????????????????????? | | ????????????? #####??# #?????????????????????????? | | ?????????????? ?# #?????????????????????????? | | ????????????? """ ?# #?????????????????????????? | | ????????????? """ # ###???????????????????????? | | ????????????# """ # #???????????????????????? | | ????????????# + +???????????????????????? | | ????????????#""" # #???????????????????????? | | ????????????#"R # #???????????????????????? | | ????????????#""" ?# #???????????????????????? | | ????????????# ?# ##########??????????????? | | ##+################### ^ ???????????? | | # " ???????????? | +----------------------------------------------------+ Best States ------------- Heat Dissipation 43 Energy Generation 10 Energy Capacity 125 Matter Stores 300 Matter Capacity 300 Sight Range 16 Terrain Scan Density 10 Armor Coverage 150 Evasion (%) 63 Offensive Hacking 30 Defensive Hacking 10 Item Schematics ----------------- Katana | -8/Materials | Hacked Robot Schematics ------------------ None Fabricated ------------ Nothing Repaired ---------- Nothing Studied --------- None Alien Tech Used ----------------- None Achievements -------------- None Challenges ------------ None RPGLIKE | -11 -10 -9 -8 --------- Run | Yrd Mat Mat Mat Levels Raised 4 | . . 2 2 XP Earned 9015 | 3000 350 3335 2330 XP Spent 8860 | 3000 . 2460 3400 Upgrades 18 | 5 . 8 5 Propulsion Slot 1 | 1 . . . Weapon Slot 3 | 3 . . . Heat Dissipation 3 | . . 3 . Mass Support 1 | 1 . . . Inventory Capacity 2 | . . 1 1 Hack Attack % 6 | . . 4 2 Hack Defense % 2 | . . . 2 Protomatter Created 296 | . 18 135 143 Integrity Restored 277 | . 24 253 . Core 204 | . 24 180 . Parts 73 | . . 73 . Protomatter Decayed 57 | . 10 6 41 Game ------ Seed SigixLongswordShearcannon Manual? 0 Play Time 00:08:30 Cumulative 365.1 hours Start 2025.11.02 @ 13:56:44 End 2025.11.02 @ 14:02:56 Sessions 1 Manual Loads 0 Difficulty Rogue Special Mode Winter2019/RPGLIKE Game No. 341 Rogue 152 Adventurer 177 Explorer 12 Win Type - Total 76 Types 23/2/19/3/12/0/5/6/0/6 Lore% 60 Gallery% 58 Achievement% 53 Wizard Run 0 Options --------- Layout 0 ASCII 0 Keyboard 0 Movement Numpad Keybinds 0 Fullscreen 2 Font 12/Smallcaps Map View 83x54 Zoom Use 0% Tactical HUD 0 Map Filters NONE Filters NONE Steam 1 RUN: 5c0a5141-a3df-442d-8fbc-343f3db851ab